[Event "*** SCC Grand Prix: Titled Tuesday Blitz"]
[Site "Chess.com"]
[Date "2020.08.25"]
[Round "1"]
[White "snowlord"]
[Black "eCztery"]
[Result "1-0"]
[WhiteElo "2828"]
[BlackElo "2414"]
[TimeControl "180+1"]
[EndTime "10:05:32 PDT"]
[Termination "snowlord won by resignation"]

1. d4 {[%clk 0:03:00.9]} 1... Nf6 {[%clk 0:02:56.6]} 2. c4 {[%clk 0:03:00.2]}
2... e6 {[%clk 0:02:53.6]} 3. Nf3 {[%clk 0:03:00]} 3... d5 {[%clk 0:02:53.2]} 4.
g3 {[%clk 0:02:59]} 4... dxc4 {[%clk 0:02:49.8]} 5. Bg2 {[%clk 0:02:57.6]} 5...
c5 {[%clk 0:02:48.1]} 6. O-O {[%clk 0:02:55.6]} 6... Nc6 {[%clk 0:02:48.3]} 7.
Na3 {[%clk 0:02:55.6]} 7... cxd4 {[%clk 0:02:47.3]} 8. Nxc4 {[%clk 0:02:55.8]}
8... Be7 {[%clk 0:02:45.9]} 9. b3 {[%clk 0:02:56.2]} 9... O-O {[%clk 0:02:43.8]}
10. Bb2 {[%clk 0:02:56.7]} 10... Rb8 {[%clk 0:02:36.1]} 11. Nxd4 {[%clk
0:02:55.8]} 11... Nxd4 {[%clk 0:02:37]} 12. Bxd4 {[%clk 0:02:55.5]} 12... b6
{[%clk 0:02:34.1]} 13. Be5 {[%clk 0:02:52]} 13... Bb7 {[%clk 0:01:54.6]} 14.
Qxd8 {[%clk 0:02:44.6]} 14... Rfxd8 {[%clk 0:01:45.9]} 15. Bxb8 {[%clk
0:02:42.7]} 15... Bxg2 {[%clk 0:01:46.4]} 16. Kxg2 {[%clk 0:02:39.8]} 16... Rxb8
{[%clk 0:01:46.7]} 17. Ne5 {[%clk 0:02:36.9]} 17... Ne4 {[%clk 0:01:38.4]} 18.
Nc6 {[%clk 0:02:34.3]} 18... Re8 {[%clk 0:01:37.3]} 19. f3 {[%clk 0:02:30.5]}
19... Nc3 {[%clk 0:01:36.7]} 20. Nxe7+ {[%clk 0:02:29.5]} 20... Rxe7 {[%clk
0:01:37.6]} 21. Rac1 {[%clk 0:02:29.9]} 21... Rc7 {[%clk 0:01:37.8]} 22. Rc2
{[%clk 0:02:29.5]} 22... b5 {[%clk 0:01:32.2]} 23. b4 {[%clk 0:02:28.6]} 23...
Rc4 {[%clk 0:01:28.3]} 24. Rfc1 {[%clk 0:02:24.8]} 24... Nd5 {[%clk 0:01:28.6]}
25. Rxc4 {[%clk 0:02:24.3]} 25... Ne3+ {[%clk 0:01:22.4]} 26. Kf2 {[%clk
0:02:24.4]} 26... Nxc4 {[%clk 0:01:23.3]} 27. a4 {[%clk 0:02:24.3]} 27... a6
{[%clk 0:01:23.8]} 28. Rd1 {[%clk 0:02:19.8]} 28... Kf8 {[%clk 0:01:22.1]} 29.
axb5 {[%clk 0:02:16.7]} 29... axb5 {[%clk 0:01:21.9]} 30. Rd7 {[%clk 0:02:14.7]}
30... Ke8 {[%clk 0:01:14.1]} 31. Rb7 {[%clk 0:02:12.6]} 31... Nd6 {[%clk
0:01:14.6]} 32. Ra7 {[%clk 0:02:09.7]} 32... Nc8 {[%clk 0:01:06.9]} 33. Ra5
{[%clk 0:02:05.8]} 33... Nd6 {[%clk 0:01:06.5]} 34. e4 {[%clk 0:02:05.3]} 34...
e5 {[%clk 0:01:05.8]} 35. Ke2 {[%clk 0:01:59.9]} 35... Kd7 {[%clk 0:01:04.4]}
36. Kd3 {[%clk 0:02:00.3]} 36... Kc6 {[%clk 0:01:00.8]} 37. Ra6+ {[%clk
0:01:57.2]} 37... Kc7 {[%clk 0:01:01]} 38. f4 {[%clk 0:01:52]} 38... f6 {[%clk
0:00:57.1]} 39. h4 {[%clk 0:01:45.2]} 39... h6 {[%clk 0:00:53.9]} 40. h5 {[%clk
0:01:44.2]} 40... Nb7 {[%clk 0:00:50.6]} 41. fxe5 {[%clk 0:01:42.9]} 41... fxe5
{[%clk 0:00:51.3]} 42. Rg6 {[%clk 0:01:42.8]} 42... Nd6 {[%clk 0:00:48]} 43.
Rxg7+ {[%clk 0:01:43.5]} 43... Kc6 {[%clk 0:00:48.6]} 44. Rg6 {[%clk 0:01:44.4]}
44... Kd7 {[%clk 0:00:49.2]} 45. Rxh6 {[%clk 0:01:44.4]} 45... Nf7 {[%clk
0:00:49.1]} 46. Rb6 {[%clk 0:01:43]} 1-0

[Event "*** SCC Grand Prix: Titled Tuesday Blitz"]
[Site "Chess.com"]
[Date "2020.08.25"]
[Round "1"]
[White "kidagent"]
[Black "arminmusovic"]
[Result "0-1"]
[WhiteElo "2258"]
[BlackElo "2585"]
[TimeControl "180+1"]
[EndTime "10:05:32 PDT"]
[Termination "arminmusovic won by resignation"]

1. e4 {[%clk 0:03:00.9]} 1... c6 {[%clk 0:02:59.9]} 2. d4 {[%clk 0:03:00.4]}
2... d5 {[%clk 0:03:00.2]} 3. Nd2 {[%clk 0:03:00.6]} 3... dxe4 {[%clk
0:03:00.4]} 4. Nxe4 {[%clk 0:03:01.2]} 4... Nf6 {[%clk 0:03:01.3]} 5. Nxf6+
{[%clk 0:03:00.1]} 5... exf6 {[%clk 0:03:02.2]} 6. Nf3 {[%clk 0:02:59.9]} 6...
Bd6 {[%clk 0:03:02.7]} 7. Bd3 {[%clk 0:02:58.9]} 7... O-O {[%clk 0:03:02.9]} 8.
O-O {[%clk 0:02:58.5]} 8... Bg4 {[%clk 0:03:02.5]} 9. h3 {[%clk 0:02:58.2]} 9...
Bh5 {[%clk 0:03:02.5]} 10. g4 {[%clk 0:02:55.1]} 10... Bg6 {[%clk 0:03:01]} 11.
Bxg6 {[%clk 0:02:54.6]} 11... hxg6 {[%clk 0:03:01.9]} 12. c4 {[%clk 0:02:50.8]}
12... Re8 {[%clk 0:03:01.3]} 13. Be3 {[%clk 0:02:50.7]} 13... Nd7 {[%clk
0:03:00.7]} 14. Qd3 {[%clk 0:02:45.2]} 14... Rc8 {[%clk 0:02:58]} 15. Rad1
{[%clk 0:02:43.7]} 15... Nf8 {[%clk 0:02:57.7]} 16. Rfe1 {[%clk 0:02:42.8]}
16... Bb8 {[%clk 0:02:55.9]} 17. Bc1 {[%clk 0:02:27.7]} 17... Qa5 {[%clk
0:02:48.6]} 18. a3 {[%clk 0:02:21.2]} 18... Ne6 {[%clk 0:02:23.3]} 19. b4 {[%clk
0:02:15.6]} 19... Qc7 {[%clk 0:02:13.5]} 20. Kf1 {[%clk 0:02:09.7]} 20... Red8
{[%clk 0:02:09.1]} 21. Qb3 {[%clk 0:01:58.7]} 21... b5 {[%clk 0:01:45.8]} 22.
cxb5 {[%clk 0:01:51.9]} 22... cxb5 {[%clk 0:01:43.9]} 23. d5 {[%clk 0:01:51.3]}
23... Nf4 {[%clk 0:01:33.3]} 24. Nd4 {[%clk 0:01:49.1]} 24... Nxd5 {[%clk
0:01:17.4]} 25. Nxb5 {[%clk 0:01:46.7]} 25... Qh2 {[%clk 0:01:08.7]} 26. Rxd5
{[%clk 0:01:34.2]} 26... Qh1+ {[%clk 0:01:07.6]} 27. Ke2 {[%clk 0:01:31.4]}
27... Qxd5 {[%clk 0:01:07.3]} 28. Qxd5 {[%clk 0:01:28.9]} 28... Rxd5 {[%clk
0:01:08.2]} 29. a4 {[%clk 0:01:24.9]} 29... a6 {[%clk 0:00:59.9]} 30. Na3 {[%clk
0:01:24.1]} 30... Bd6 {[%clk 0:00:56.2]} 0-1

[Event "*** SCC Grand Prix: Titled Tuesday Blitz"]
[Site "Chess.com"]
[Date "2020.08.25"]
[Round "1"]
[White "googlegoom"]
[Black "Parhamov"]
[Result "0-1"]
[WhiteElo "2450"]
[BlackElo "3014"]
[TimeControl "180+1"]
[EndTime "10:05:36 PDT"]
[Termination "Parhamov won by resignation"]

1. Nf3 {[%clk 0:02:59.7]} 1... d5 {[%clk 0:02:54.2]} 2. b3 {[%clk 0:02:59.4]}
2... Bf5 {[%clk 0:02:52.1]} 3. Bb2 {[%clk 0:02:59.8]} 3... h6 {[%clk 0:02:52.5]}
4. e3 {[%clk 0:02:59]} 4... Nd7 {[%clk 0:02:52]} 5. Be2 {[%clk 0:02:57.7]} 5...
e6 {[%clk 0:02:52.1]} 6. d4 {[%clk 0:02:58]} 6... Ngf6 {[%clk 0:02:52.4]} 7.
Nbd2 {[%clk 0:02:58.4]} 7... Bd6 {[%clk 0:02:51.4]} 8. c4 {[%clk 0:02:58.3]}
8... O-O {[%clk 0:02:50.7]} 9. O-O {[%clk 0:02:58.1]} 9... c6 {[%clk 0:02:48.5]}
10. a3 {[%clk 0:02:57.5]} 10... Qe7 {[%clk 0:02:47.2]} 11. b4 {[%clk 0:02:57]}
11... Rfe8 {[%clk 0:02:46.5]} 12. Qb3 {[%clk 0:02:53.2]} 12... Ne4 {[%clk
0:02:40.5]} 13. Rfd1 {[%clk 0:02:49]} 13... Ndf6 {[%clk 0:02:37.6]} 14. Rac1
{[%clk 0:02:45.1]} 14... Ng4 {[%clk 0:02:35]} 15. Nxe4 {[%clk 0:02:35.7]} 15...
dxe4 {[%clk 0:02:32.6]} 16. Ne5 {[%clk 0:02:35.9]} 16... Bxe5 {[%clk 0:02:31.5]}
17. dxe5 {[%clk 0:02:35.9]} 17... Qh4 {[%clk 0:02:30.3]} 18. Bxg4 {[%clk
0:02:35.6]} 18... Bxg4 {[%clk 0:02:28.6]} 19. Rd4 {[%clk 0:02:28.1]} 19... Bf5
{[%clk 0:02:23.1]} 20. Rd7 {[%clk 0:02:18.2]} 20... Rad8 {[%clk 0:02:17.2]} 21.
Rcd1 {[%clk 0:02:16.1]} 21... Qg5 {[%clk 0:02:09.8]} 22. Kh1 {[%clk 0:01:55.1]}
22... Bg4 {[%clk 0:02:03.1]} 23. Rxd8 {[%clk 0:01:49.5]} 23... Rxd8 {[%clk
0:02:03.1]} 24. Rxd8+ {[%clk 0:01:50.4]} 24... Qxd8 {[%clk 0:02:03.4]} 25. Qc2
{[%clk 0:01:51]} 25... Qh4 {[%clk 0:01:16.2]} 26. Kg1 {[%clk 0:01:45.3]} 26...
Bf3 {[%clk 0:01:12.9]} 27. gxf3 {[%clk 0:01:06.8]} 27... exf3 {[%clk 0:01:12.3]}
28. Bd4 {[%clk 0:00:41.8]} 28... Qh3 {[%clk 0:01:10.4]} 0-1

[Event "*** SCC Grand Prix: Titled Tuesday Blitz"]
[Site "Chess.com"]
[Date "2020.08.25"]
[Round "1"]
[White "SaqoChess_Twitch"]
[Black "Beca95"]
[Result "0-1"]
[WhiteElo "2428"]
[BlackElo "2871"]
[TimeControl "180+1"]
[EndTime "10:05:39 PDT"]
[Termination "Beca95 won by resignation"]

1. d4 {[%clk 0:02:54.2]} 1... g6 {[%clk 0:02:58.4]} 2. c4 {[%clk 0:02:52.9]}
2... Bg7 {[%clk 0:02:58.3]} 3. Nc3 {[%clk 0:02:52.9]} 3... c5 {[%clk 0:02:57.4]}
4. d5 {[%clk 0:02:52.6]} 4... Bxc3+ {[%clk 0:02:57.4]} 5. bxc3 {[%clk
0:02:53.5]} 5... f5 {[%clk 0:02:57.2]} 6. Nf3 {[%clk 0:02:52.2]} 6... d6 {[%clk
0:02:57.2]} 7. Qc2 {[%clk 0:02:51.7]} 7... Nf6 {[%clk 0:02:57.3]} 8. h4 {[%clk
0:02:52.2]} 8... Qa5 {[%clk 0:02:52.9]} 9. e3 {[%clk 0:02:51.7]} 9... Nbd7
{[%clk 0:02:52.3]} 10. Nd2 {[%clk 0:02:51.2]} 10... Nb6 {[%clk 0:02:41.3]} 11.
Be2 {[%clk 0:02:50.9]} 11... Bd7 {[%clk 0:02:40.2]} 12. h5 {[%clk 0:02:50.4]}
12... O-O-O {[%clk 0:02:38.5]} 13. f3 {[%clk 0:02:36.1]} 13... Ba4 {[%clk
0:02:36.8]} 14. Qd3 {[%clk 0:02:32.7]} 14... Kb8 {[%clk 0:02:34.6]} 15. h6
{[%clk 0:02:21.5]} 15... Rhe8 {[%clk 0:02:32.8]} 16. Kf2 {[%clk 0:02:21.1]}
16... e6 {[%clk 0:02:30.5]} 17. e4 {[%clk 0:02:13.6]} 17... exd5 {[%clk
0:02:22]} 18. cxd5 {[%clk 0:02:11]} 18... fxe4 {[%clk 0:02:18]} 19. fxe4 {[%clk
0:02:08.6]} 19... Rf8 {[%clk 0:02:09.2]} 20. Bf3 {[%clk 0:02:06.5]} 20... Bb5
{[%clk 0:02:07.1]} 21. c4 {[%clk 0:02:05.8]} 21... Ng4+ {[%clk 0:02:00.4]} 22.
Kg3 {[%clk 0:02:04.3]} 22... Ne5 {[%clk 0:02:00.2]} 23. Qc2 {[%clk 0:02:02.3]}
23... Bxc4 {[%clk 0:02:00.1]} 24. Bb2 {[%clk 0:01:58.6]} 24... Bd3 {[%clk
0:01:39.8]} 25. Qc3 {[%clk 0:01:56.7]} 25... Qb5 {[%clk 0:01:38.4]} 26. Qb3
{[%clk 0:01:53.3]} 26... Nbd7 {[%clk 0:01:33.8]} 27. Qxb5 {[%clk 0:01:41]} 27...
Bxb5 {[%clk 0:01:34.7]} 28. a4 {[%clk 0:01:41.6]} 28... Ba6 {[%clk 0:01:34.4]}
29. Rab1 {[%clk 0:01:40]} 29... Rde8 {[%clk 0:01:34.1]} 30. Bc3 {[%clk
0:01:38.8]} 30... Kc7 {[%clk 0:01:34.5]} 31. Ba5+ {[%clk 0:01:37.1]} 31... b6
{[%clk 0:01:34.7]} 32. Bc3 {[%clk 0:01:37.7]} 32... g5 {[%clk 0:01:33.6]} 33. a5
{[%clk 0:01:29.1]} 33... b5 {[%clk 0:01:33.7]} 34. Rh5 {[%clk 0:01:21.2]} 34...
b4 {[%clk 0:01:24.6]} 35. Bxe5 {[%clk 0:01:20.3]} 35... Nxe5 {[%clk 0:01:25.5]}
36. Rxg5 {[%clk 0:01:20.5]} 36... Rg8 {[%clk 0:01:26.1]} 37. Kh4 {[%clk
0:01:08.9]} 37... Rxg5 {[%clk 0:01:25.3]} 38. Kxg5 {[%clk 0:01:09.8]} 38... Rg8+
{[%clk 0:01:25.2]} 39. Kh5 {[%clk 0:01:08.5]} 39... Bc8 {[%clk 0:01:24.2]} 40.
g4 {[%clk 0:01:05.1]} 40... Nxf3 {[%clk 0:01:22.8]} 41. Nxf3 {[%clk 0:01:01]}
41... Bxg4+ {[%clk 0:01:22.5]} 42. Kh4 {[%clk 0:01:01.9]} 42... Bxf3 {[%clk
0:01:22.7]} 43. Rf1 {[%clk 0:01:02.8]} 43... Bxe4 {[%clk 0:01:22.9]} 44. Rf7+
{[%clk 0:01:02.4]} 44... Kb8 {[%clk 0:01:23.1]} 45. Rd7 {[%clk 0:01:01.6]} 45...
b3 {[%clk 0:01:20.5]} 0-1

[Event "*** SCC Grand Prix: Titled Tuesday Blitz"]
[Site "Chess.com"]
[Date "2020.08.25"]
[Round "1"]
[White "londonkid"]
[Black "FairChess_on_YouTube"]
[Result "0-1"]
[WhiteElo "2449"]
[BlackElo "2993"]
[TimeControl "180+1"]
[EndTime "10:05:40 PDT"]
[Termination "FairChess_on_YouTube won by checkmate"]

1. d4 {[%clk 0:02:58.1]} 1... Nf6 {[%clk 0:02:59.5]} 2. c4 {[%clk 0:02:58.6]}
2... g6 {[%clk 0:02:58.6]} 3. Nc3 {[%clk 0:02:58.3]} 3... Bg7 {[%clk 0:02:58.4]}
4. Nf3 {[%clk 0:02:58.7]} 4... O-O {[%clk 0:02:58.2]} 5. Bg5 {[%clk 0:02:59.3]}
5... h6 {[%clk 0:02:56.3]} 6. Bh4 {[%clk 0:02:59.3]} 6... d6 {[%clk 0:02:54.7]}
7. e3 {[%clk 0:02:58.7]} 7... c5 {[%clk 0:02:54.1]} 8. d5 {[%clk 0:02:56.3]}
8... a6 {[%clk 0:02:49.2]} 9. a4 {[%clk 0:02:55.8]} 9... Qb6 {[%clk 0:02:49]}
10. Rb1 {[%clk 0:02:52]} 10... Bg4 {[%clk 0:02:46.2]} 11. Be2 {[%clk 0:02:45.9]}
11... Nbd7 {[%clk 0:02:42.8]} 12. O-O {[%clk 0:02:45.4]} 12... g5 {[%clk
0:02:37.3]} 13. Bg3 {[%clk 0:02:45.2]} 13... Nh5 {[%clk 0:02:37.9]} 14. Nd2
{[%clk 0:02:36.9]} 14... Nxg3 {[%clk 0:02:36.8]} 15. hxg3 {[%clk 0:02:35.5]}
15... Bf5 {[%clk 0:02:35.8]} 16. e4 {[%clk 0:02:34.7]} 16... Bh7 {[%clk
0:02:35.5]} 17. f4 {[%clk 0:02:26.4]} 17... Kh8 {[%clk 0:02:30.7]} 18. Nf3
{[%clk 0:02:20.3]} 18... Rg8 {[%clk 0:02:26]} 19. f5 {[%clk 0:02:16.1]} 19... g4
{[%clk 0:02:23.8]} 20. Nd2 {[%clk 0:02:12.9]} 20... Bd4+ {[%clk 0:02:18.7]} 21.
Kh1 {[%clk 0:02:10.9]} 21... Nf6 {[%clk 0:02:18.1]} 22. Nb3 {[%clk 0:02:06.8]}
22... Be5 {[%clk 0:02:18.2]} 23. a5 {[%clk 0:02:04.7]} 23... Qd8 {[%clk
0:02:17.4]} 24. Kg1 {[%clk 0:02:00.3]} 24... Bxg3 {[%clk 0:02:14.9]} 25. Qd3
{[%clk 0:02:00.2]} 25... Be5 {[%clk 0:02:13.5]} 26. Kf2 {[%clk 0:01:55.8]} 26...
h5 {[%clk 0:02:07.8]} 27. Ke1 {[%clk 0:01:55.5]} 27... Qf8 {[%clk 0:02:07.4]}
28. Kd2 {[%clk 0:01:55.5]} 28... Qh6+ {[%clk 0:02:07.1]} 29. Kc2 {[%clk
0:01:55.8]} 29... h4 {[%clk 0:02:03.9]} 30. Rh1 {[%clk 0:01:51]} 30... Rg5
{[%clk 0:02:03.8]} 31. Nd2 {[%clk 0:01:44.1]} 31... Rag8 {[%clk 0:02:03.3]} 32.
Rbf1 {[%clk 0:01:41.4]} 32... Rh5 {[%clk 0:02:01.5]} 33. Nd1 {[%clk 0:01:37.2]}
33... h3 {[%clk 0:01:58.1]} 34. gxh3 {[%clk 0:01:36.4]} 34... Rxh3 {[%clk
0:01:59]} 35. Rxh3 {[%clk 0:01:36]} 35... Qxh3 {[%clk 0:01:58.7]} 36. Ne3 {[%clk
0:01:34.4]} 36... Bd4 {[%clk 0:01:55.3]} 37. Nd1 {[%clk 0:01:26.2]} 37... Qxd3+
{[%clk 0:01:55.1]} 38. Kxd3 {[%clk 0:01:25.8]} 38... g3 {[%clk 0:01:55.7]} 39.
Ne3 {[%clk 0:01:24.1]} 39... Nd7 {[%clk 0:01:47.1]} 40. Bf3 {[%clk 0:01:21.7]}
40... Ne5+ {[%clk 0:01:46.2]} 41. Ke2 {[%clk 0:01:21.8]} 41... Bxb2 {[%clk
0:01:45.7]} 42. Rb1 {[%clk 0:01:19.3]} 42... Bc3 {[%clk 0:01:44.8]} 43. Ndf1
{[%clk 0:01:14.7]} 43... Bb4 {[%clk 0:01:39.7]} 44. Bg2 {[%clk 0:01:13.1]} 44...
f6 {[%clk 0:01:34.5]} 45. Nc2 {[%clk 0:01:13.2]} 45... Bxa5 {[%clk 0:01:33]} 46.
Rxb7 {[%clk 0:01:11.6]} 46... Rg7 {[%clk 0:01:30.3]} 47. Rb8+ {[%clk 0:01:09.5]}
47... Bg8 {[%clk 0:01:29.9]} 48. Ra8 {[%clk 0:01:09.2]} 48... Nxc4 {[%clk
0:01:29.1]} 49. Rxa6 {[%clk 0:01:08.6]} 49... Bf7 {[%clk 0:01:23.4]} 50. Nfe3
{[%clk 0:01:05.4]} 50... Bh5+ {[%clk 0:01:22.6]} 51. Kd3 {[%clk 0:01:04.9]}
51... Ne5# {[%clk 0:01:22.1]} 0-1

[Event "*** SCC Grand Prix: Titled Tuesday Blitz"]
[Site "Chess.com"]
[Date "2020.08.25"]
[Round "1"]
[White "VMikhalevski"]
[Black "TomasKapitanchuk"]
[Result "1-0"]
[WhiteElo "2735"]
[BlackElo "2386"]
[TimeControl "180+1"]
[EndTime "10:05:40 PDT"]
[Termination "VMikhalevski won by checkmate"]

1. d4 {[%clk 0:03:00.9]} 1... Nf6 {[%clk 0:02:59.3]} 2. Nf3 {[%clk 0:03:00.3]}
2... e6 {[%clk 0:02:58.9]} 3. c4 {[%clk 0:02:56.4]} 3... c5 {[%clk 0:02:54.5]}
4. d5 {[%clk 0:02:55.5]} 4... exd5 {[%clk 0:02:54.3]} 5. cxd5 {[%clk 0:02:55.6]}
5... d6 {[%clk 0:02:54.6]} 6. Nc3 {[%clk 0:02:55.8]} 6... g6 {[%clk 0:02:54.5]}
7. Bf4 {[%clk 0:02:54.2]} 7... Bg7 {[%clk 0:02:53.1]} 8. e3 {[%clk 0:02:53.3]}
8... O-O {[%clk 0:02:52.3]} 9. h3 {[%clk 0:02:48.7]} 9... Nh5 {[%clk 0:02:51.5]}
10. Bh2 {[%clk 0:02:47.3]} 10... f5 {[%clk 0:02:51.7]} 11. Be2 {[%clk
0:02:39.5]} 11... f4 {[%clk 0:02:49.2]} 12. e4 {[%clk 0:02:33.7]} 12... Nd7
{[%clk 0:02:44.3]} 13. Nd2 {[%clk 0:02:29.4]} 13... Qg5 {[%clk 0:02:38.2]} 14.
Bxh5 {[%clk 0:02:24]} 14... gxh5 {[%clk 0:02:35.5]} 15. O-O {[%clk 0:02:02.3]}
15... Ne5 {[%clk 0:02:25.3]} 16. Nf3 {[%clk 0:02:01.6]} 16... Qg6 {[%clk
0:01:34.4]} 17. Kh1 {[%clk 0:01:55.6]} 17... Bd7 {[%clk 0:01:29]} 18. a4 {[%clk
0:01:51.7]} 18... Kh8 {[%clk 0:01:24.3]} 19. Rg1 {[%clk 0:01:13.2]} 19... Rf7
{[%clk 0:01:19.7]} 20. Qe2 {[%clk 0:01:09.3]} 20... Rg8 {[%clk 0:01:17.9]} 21.
Nh4 {[%clk 0:00:55.1]} 21... Qf6 {[%clk 0:01:05.4]} 22. Qxh5 {[%clk 0:00:48.9]}
22... Nd3 {[%clk 0:00:45.6]} 23. Raf1 {[%clk 0:00:44.7]} 23... Nxb2 {[%clk
0:00:44.4]} 24. e5 {[%clk 0:00:43.7]} 24... Qxe5 {[%clk 0:00:43.6]} 25. Ng6#
{[%clk 0:00:42.9]} 1-0

[Event "*** SCC Grand Prix: Titled Tuesday Blitz"]
[Site "Chess.com"]
[Date "2020.08.25"]
[Round "1"]
[White "Susal_De_Silva"]
[Black "Volodar_Murzin"]
[Result "1-0"]
[WhiteElo "2357"]
[BlackElo "2657"]
[TimeControl "180+1"]
[EndTime "10:05:40 PDT"]
[Termination "Susal_De_Silva won on time"]

1. e4 {[%clk 0:03:00.9]} 1... c5 {[%clk 0:02:53.3]} 2. Nf3 {[%clk 0:03:00.5]}
2... d6 {[%clk 0:02:52.8]} 3. Bb5+ {[%clk 0:03:00.4]} 3... Nd7 {[%clk 0:02:51]}
4. O-O {[%clk 0:03:00.2]} 4... a6 {[%clk 0:02:48.8]} 5. Bd3 {[%clk 0:02:59.9]}
5... Ngf6 {[%clk 0:02:47.9]} 6. Re1 {[%clk 0:03:00]} 6... e6 {[%clk 0:02:45]} 7.
c3 {[%clk 0:02:59.5]} 7... Be7 {[%clk 0:02:42.1]} 8. Bc2 {[%clk 0:02:58.2]} 8...
O-O {[%clk 0:02:40.3]} 9. a4 {[%clk 0:02:58.1]} 9... b6 {[%clk 0:01:21.2]} 10.
d4 {[%clk 0:02:56]} 10... Bb7 {[%clk 0:01:18.4]} 11. Nbd2 {[%clk 0:02:49.8]}
11... Qc7 {[%clk 0:01:13.3]} 12. Nf1 {[%clk 0:02:48.2]} 12... Rfc8 {[%clk
0:01:08.9]} 13. Bb1 {[%clk 0:02:03.2]} 13... Nf8 {[%clk 0:00:38.4]} 14. Ng3
{[%clk 0:01:58.1]} 14... Ng6 {[%clk 0:00:36]} 15. Ba2 {[%clk 0:01:43.5]} 15...
cxd4 {[%clk 0:00:17.8]} 16. cxd4 {[%clk 0:01:44.4]} 16... Qc2 {[%clk 0:00:17.2]}
17. d5 {[%clk 0:01:30.6]} 17... Qxd1 {[%clk 0:00:13]} 18. Rxd1 {[%clk
0:01:30.8]} 18... exd5 {[%clk 0:00:13.3]} 19. exd5 {[%clk 0:01:31.7]} 19... Bf8
{[%clk 0:00:11.9]} 20. Be3 {[%clk 0:01:25.3]} 20... b5 {[%clk 0:00:08.1]} 21. a5
{[%clk 0:01:20.2]} 1-0

[Event "*** SCC Grand Prix: Titled Tuesday Blitz"]
[Site "Chess.com"]
[Date "2020.08.25"]
[Round "1"]
[White "RenarddesSurfaces"]
[Black "NotFischer"]
[Result "1-0"]
[WhiteElo "2517"]
[BlackElo "2177"]
[TimeControl "180+1"]
[EndTime "10:05:43 PDT"]
[Termination "RenarddesSurfaces won by resignation"]

1. e4 {[%clk 0:03:00.4]} 1... g6 {[%clk 0:03:00.7]} 2. d4 {[%clk 0:03:00]} 2...
Bg7 {[%clk 0:03:01.6]} 3. Nc3 {[%clk 0:02:58.4]} 3... c6 {[%clk 0:03:01.4]} 4.
Be3 {[%clk 0:02:45.5]} 4... d5 {[%clk 0:03:01.2]} 5. f3 {[%clk 0:02:46]} 5...
dxe4 {[%clk 0:03:00.6]} 6. fxe4 {[%clk 0:02:46]} 6... Nf6 {[%clk 0:03:01]} 7. h3
{[%clk 0:02:40.3]} 7... O-O {[%clk 0:03:00.6]} 8. Nf3 {[%clk 0:02:38.8]} 8...
Nbd7 {[%clk 0:02:57.8]} 9. Bc4 {[%clk 0:02:37.8]} 9... Qa5 {[%clk 0:02:52.8]}
10. O-O {[%clk 0:02:36.9]} 10... e5 {[%clk 0:02:50.6]} 11. d5 {[%clk 0:02:15.9]}
11... Qb4 {[%clk 0:02:48.2]} 12. Qd3 {[%clk 0:01:31.3]} 12... Nc5 {[%clk
0:02:39.7]} 13. a3 {[%clk 0:01:31.4]} 13... Nxd3 {[%clk 0:02:33.9]} 14. axb4
{[%clk 0:01:31.3]} 14... Nxb4 {[%clk 0:02:34.8]} 15. Bc5 {[%clk 0:01:31.5]}
15... Nxc2 {[%clk 0:02:33.6]} 16. Rac1 {[%clk 0:01:31]} 16... Nd4 {[%clk
0:02:22.9]} 17. Bxf8 {[%clk 0:01:23.2]} 17... Nxf3+ {[%clk 0:02:06.8]} 18. Rxf3
{[%clk 0:01:24.1]} 18... Kxf8 {[%clk 0:02:06.8]} 19. Rcf1 {[%clk 0:01:24.1]}
19... Ke7 {[%clk 0:02:00.1]} 20. d6+ {[%clk 0:01:24.2]} 20... Kxd6 {[%clk
0:01:54.5]} 21. Rxf6+ {[%clk 0:01:24.5]} 21... Bxf6 {[%clk 0:01:55.4]} 22. Rxf6+
{[%clk 0:01:25]} 22... Kc5 {[%clk 0:01:55.9]} 23. Bxf7 {[%clk 0:01:20.8]} 23...
b5 {[%clk 0:01:51.3]} 24. Bg8 {[%clk 0:01:11.1]} 24... a5 {[%clk 0:01:42]} 25.
Bxh7 {[%clk 0:01:07.7]} 25... b4 {[%clk 0:01:35.9]} 26. Na4+ {[%clk 0:01:07.1]}
26... Kb5 {[%clk 0:01:32.8]} 27. b3 {[%clk 0:01:07.1]} 27... Ba6 {[%clk
0:01:19.6]} 28. Bxg6 {[%clk 0:00:58.8]} 28... Rd8 {[%clk 0:01:19.6]} 29. Bf7
{[%clk 0:00:56.4]} 29... Rd1+ {[%clk 0:01:17]} 30. Kh2 {[%clk 0:00:56.5]} 30...
Rd4 {[%clk 0:01:16.8]} 31. Bd5 {[%clk 0:00:50.2]} 31... Bb7 {[%clk 0:01:09.2]}
32. h4 {[%clk 0:00:45.2]} 32... Rxd5 {[%clk 0:01:06.1]} 33. exd5 {[%clk
0:00:44.7]} 1-0

[Event "*** SCC Grand Prix: Titled Tuesday Blitz"]
[Site "Chess.com"]
[Date "2020.08.25"]
[Round "1"]
[White "Chernobay_Artem"]
[Black "marcocordeiro2013"]
[Result "1-0"]
[WhiteElo "2555"]
[BlackElo "2228"]
[TimeControl "180+1"]
[EndTime "10:05:45 PDT"]
[Termination "Chernobay_Artem won on time"]

1. d4 {[%clk 0:03:00.9]} 1... c5 {[%clk 0:02:25]} 2. d5 {[%clk 0:03:00.4]} 2...
f5 {[%clk 0:02:24.4]} 3. c4 {[%clk 0:02:56.6]} 3... Nf6 {[%clk 0:02:23.7]} 4. e4
{[%clk 0:02:49.3]} 4... fxe4 {[%clk 0:02:17.2]} 5. f3 {[%clk 0:02:49]} 5... d6
{[%clk 0:02:14.3]} 6. fxe4 {[%clk 0:02:49.1]} 6... g6 {[%clk 0:02:12]} 7. Nc3
{[%clk 0:02:34.2]} 7... Bg7 {[%clk 0:02:11.5]} 8. Nf3 {[%clk 0:02:33.6]} 8...
O-O {[%clk 0:02:10.3]} 9. Be2 {[%clk 0:02:33.2]} 9... Na6 {[%clk 0:02:00.9]} 10.
O-O {[%clk 0:02:32.4]} 10... Nc7 {[%clk 0:01:54.9]} 11. Bg5 {[%clk 0:01:52.8]}
11... a6 {[%clk 0:01:13.5]} 12. e5 {[%clk 0:01:37.9]} 12... Ng4 {[%clk
0:00:26.3]} 13. exd6 {[%clk 0:01:17.4]} 13... Qxd6 {[%clk 0:00:22.7]} 14. Ne4
{[%clk 0:01:17.3]} 14... Qb6 {[%clk 0:00:10]} 15. Bxe7 {[%clk 0:01:15.9]} 15...
Ne3 {[%clk 0:00:06.5]} 16. Bxc5 {[%clk 0:01:05.8]} 16... Nxd1 {[%clk 0:00:02.2]}
17. Bxb6 {[%clk 0:01:05.7]} 1-0